[Event "2nd Bieszczady Chess-ch A 2022"]
[Site "Bystre"]
[Date "2022.07.23"]
[Round "8.6"]
[White "Palacki, Rafal"]
[Black "Hnatyshyn, Anastasiia"]
[Result "1/2-1/2"]
[ECO "A01"]
[WhiteElo "1832"]
[BlackElo "1931"]
[Annotator "TA"]
[PlyCount "61"]
[EventDate "2022.07.17"]
[EventCountry "POL"]
[SourceTitle "playchess.com"]
[Source "ChessBase"]
[SourceQuality "1"]
[TimeControl "5400+30"]

{[%evp 13,61,37,25,20,34,20,28,16,48,30,29,43,71,68,76,72,74,72,72,59,72,53,69,18,22,20,23,15,50,29,198,195,189,178,502,508,478,505,497,314,315,304,293,82,95,0,179,0,87,0]} 1. b3 {[%emt 0:05:12]} d5 {[%emt 0:00:10]} 2. Bb2 {[%emt 0:00:05]} Nf6 {[%emt 0:00:10]} 3. e3 {[%emt 0:00:10]} g6 {[%emt 0:00:13]} 4. Nf3 {[%emt 0:00:49]} Bg7 {[%emt 0:00:09]} 5. c4 {[%emt 0:00:56]} c6 {[%emt 0:00:40]} 6. Be2 {[%emt 0:00:48]} O-O {[%emt 0:00:12]} 7. O-O {[%emt 0:01:39]} Re8 {[%emt 0:01:41]} 8. d4 {[%emt 0:01:46] A12: English Opening: 1...c6 with b3 by White.} Ne4 {[%emt 0:00:21]} 9. Nbd2 {[%emt 0:00:36]} Bf5 {[%emt 0:00:54] [#]} 10. Nh4 $146 {[%emt 0:05:51] White has an edge.} ({Predecessor:} 10. Rc1 Nd7 11. Nxe4 Bxe4 12. cxd5 cxd5 13. Qd2 Qb6 14. Qc3 Bxf3 15. Bxf3 e6 16. Qc7 {½-½ (53) Nanu,C (2482)-Rogozenco,D (2527) Predeal 2006}) 10... Be6 {[%emt 0:04:00]} 11. f4 {[%emt 0:05:08]} Nxd2 {[%emt 0:07:24]} 12. Qxd2 {[%emt 0:00:06]} Bf5 {[%emt 0:00:51]} 13. Nxf5 {[%emt 0:10:42]} gxf5 {[%emt 0:00:22]} 14. g4 {[%emt 0:00:05]} fxg4 {[%emt 0:03:50]} 15. Bxg4 {[%emt 0:00:11]} Nd7 {[%emt 0:01:12]} 16. Kh1 {[%emt 0:05:30] And now Qg2 would win.} Nf6 {[%emt 0:04:28]} 17. Rg1 {[%emt 0:12:54][%cal Bf1g1,Bg1g3,Bg3f3][%mdl 32] White is more active.} Kh8 {[%emt 0:11:48]} 18. Bf3 {[%emt 0:05:37]} ({White should play} 18. Bf5 $14) 18... Rg8 $11 {[%emt 0:03:55]} 19. Qc2 {[%emt 0:10:02]} Qd7 {[%emt 0:04:26]} 20. Rg3 {[%emt 0:07:12]} Qe6 {[%emt 0:07:38]} 21. Rag1 {[%emt 0:09:59]} Qxe3 $2 {[%emt 0:14:12] [#]} (21... Bh6 $11 {and Black has nothing to worry.}) 22. Bxd5 $1 {[%emt 0:02:21][%cal Bf3d5,Bd5f7,Bf7e6][%mdl 544]} Qxf4 {[%emt 0:00:11] [#]} 23. Rf3 $1 {[%emt 0:00:36]} ({Not} 23. Bxf7 Ne4 24. R3g2 (24. Bxg8 Nxg3+ 25. Rxg3 Rxg8 $11) 24... Qxf7 $11) 23... Qh4 {[%emt 0:00:23]} (23... Nxd5 {is more resistant.} 24. Rxf4 Nxf4) 24. Bxf7 $18 {[%emt 0:00:21]} Rgf8 {[%emt 0:00:12][%cal Bg8f8,Bf8f6,Bf6g6][%mdl 32]} 25. Be6 {[%emt 0:00:33] Black must now prevent d5.} Ne4 {[%emt 0:09:15]} 26. d5 {[%emt 0:01:19][%csl Gg1][%cal Rb2g7]} Bxb2 {[%emt 0:03:02]} 27. Qxb2+ {[%emt 0:00:01]} Rf6 {[%emt 0:00:47] Strongly threatening ...Nf2+.} 28. Qg2 {[%emt 0:01:41]} (28. h3 $18) 28... Rg6 $16 {[%emt 0:00:31]} 29. Qb2+ {[%emt 0:00:18] Really sharp!} (29. Qf1 $16 Rxg1+ 30. Qxg1) 29... Rf6 $18 {[%emt 0:00:17] aiming for ...Nf2+.} 30. Qg2 {[%emt 0:01:45]} (30. Rgf1 $18 {and White stays clearly on top.} Qh6 31. Qd4) 30... Rg6 $1 $16 {[%emt 0:00:36]} 31. Qb2+ {Weighted Error Value: White=0.46/Black=0.30} (31. Qf1 $16 Rxg1+ 32. Qxg1) 1/2-1/2

[Event "2nd Bieszczady Chess-ch A 2022"]
[Site "Bystre"]
[Date "2022.07.23"]
[Round "8.6"]
[White "Palacki, Rafal"]
[Black "Hnatyshyn, Anastasiya"]
[Result "*"]
[ECO "A01"]
[WhiteElo "1832"]
[BlackElo "1931"]
[Annotator "TA"]
[PlyCount "38"]
[EventDate "2022.07.17"]
[EventCountry "POL"]
[SourceTitle "playchess.com"]
[Source "ChessBase"]
[SourceQuality "1"]
[TimeControl "5400+30"]

{[%evp 13,38,20,27,18,35,21,28,0,36,22,38,39,64,84,84,69,57,57,64,62,68,26,68,20,29,18,25]} 1. b3 {[%emt 0:05:12]} d5 {[%emt 0:00:10]} 2. Bb2 {[%emt 0:00:05]} Nf6 {[%emt 0:00:10]} 3. e3 {[%emt 0:00:10]} g6 {[%emt 0:00:13]} 4. Nf3 {[%emt 0:00:49]} Bg7 {[%emt 0:00:09]} 5. c4 {[%emt 0:00:56]} c6 {[%emt 0:00:40]} 6. Be2 {[%emt 0:00:48]} O-O {[%emt 0:00:12]} 7. O-O {[%emt 0:01:39]} Re8 {[%emt 0:01:41]} 8. d4 {[%emt 0:01:46] A12: English Opening: 1...c6 with b3 by White.} Ne4 {[%emt 0:00:21]} 9. Nbd2 {[%emt 0:00:36]} Bf5 {[%emt 0:00:54] [#]} 10. Nh4 $146 {[%emt 0:05:51] White has an edge.} ({Predecessor:} 10. Rc1 Nd7 11. Nxe4 Bxe4 12. cxd5 cxd5 13. Qd2 Qb6 14. Qc3 Bxf3 15. Bxf3 e6 16. Qc7 {½-½ (53) Nanu,C (2482)-Rogozenco,D (2527) Predeal 2006}) 10... Be6 {[%emt 0:04:00]} 11. f4 {[%emt 0:05:08]} Nxd2 {[%emt 0:07:24]} 12. Qxd2 {[%emt 0:00:06]} Bf5 {[%emt 0:00:51] Against Qc2} 13. Nxf5 {[%emt 0:10:42]} gxf5 {[%emt 0:00:22]} 14. g4 {[%emt 0:00:05]} fxg4 $1 {[%emt 0:03:50]} 15. Bxg4 {[%emt 0:00:11]} Nd7 {[%emt 0:01:12]} 16. Kh1 {[%emt 0:05:30]} Nf6 {[%emt 0:04:28]} 17. Rg1 {[%emt 0:12:54] [#] aiming for Qg2. White is more active.} Kh8 {[%emt 0:11:48]} 18. Bf3 {[%emt 0:05:37]} (18. Bf5 $14) 18... Rg8 {[%emt 0:03:55]} 19. Qc2 {[%emt 0:10:02]} Qd7 {[%emt 0:04:26] Weighted Error Value: White=0.15 (very precise) /Black=0.15 (very precise)} *

[Event "2nd Bieszczady Chess-ch A 2022"]
[Site "Bystre"]
[Date "2022.07.23"]
[Round "8.7"]
[White "Janzer, Hubert"]
[Black "Sygulski, Piotr"]
[Result "0-1"]
[ECO "D37"]
[WhiteElo "1839"]
[BlackElo "2013"]
[Annotator "TA"]
[PlyCount "54"]
[EventDate "2022.07.17"]
[EventCountry "POL"]
[SourceTitle "playchess.com"]
[Source "ChessBase"]
[SourceQuality "1"]
[TimeControl "5400+30"]

{[%evp 13,54,-18,0,-63,-62,-175,-150,-135,-146,-140,-141,-140,-138,-149,-142,-134,-141,-142,-140,-134,-139,-162,-152,-158,-147,-179,-189,-209,-202,-216,-229,-279,-265,-337,-334,-308,-305,-400,-370,-640,-585,-1837,-1609]} 1. d4 {[%emt 0:00:10]} d5 {[%emt 0:04:02]} 2. c4 {[%emt 0:00:52]} e6 {[%emt 0:00:05]} 3. Nc3 {[%emt 0:00:05]} Nf6 {[%emt 0:00:11]} 4. Nf3 {[%emt 0:00:24]} Be7 {[%emt 0:02:14]} 5. Bf4 {[%emt 0:04:29]} O-O {[%emt 0:02:53]} 6. e3 {[%emt 0:01:25]} c5 {[%emt 0:01:20]} 7. cxd5 {[%emt 0:02:56]} Nxd5 {[%emt 0:00:53]} 8. Bxb8 {[%emt 0:06:26] D37: Queen's Gambit Declined: 5 Bf4.} (8. Bg3 $11) 8... Rxb8 $15 {[%emt 0:00:41] [#]} 9. e4 $146 (9. Bd3 $15) ({Predecessor:} 9. Bc4 cxd4 10. exd4 b5 11. Bxd5 exd5 12. O-O Bg4 13. Qd3 b4 14. Ne2 Bf6 15. Ne5 Bxe5 16. dxe5 {1-0 (29) Alachihin,V (2252)-Komendatyan,A (2001) Samara 2010}) 9... cxd4 {[%emt 0:06:07]} 10. Qxd4 {[%emt 0:03:34] Black is clearly better.} Nxc3 {[%emt 0:02:52]} 11. Qxc3 {[%emt 0:02:05]} Qb6 {[%emt 0:02:16] [#] And now ...Bb4 would win.} 12. a3 {[%emt 0:09:01] Prevents Bb4.} Bd7 {[%emt 0:03:54]} 13. Bc4 {[%emt 0:06:26]} Rbc8 {[%emt 0:06:05] aiming for ...Bb5.} 14. O-O {[%emt 0:07:56]} Bb5 {[%emt 0:01:23]} 15. b3 {[%emt 0:00:48]} Bxc4 {[%emt 0:01:45]} 16. bxc4 {[%emt 0:00:09]} Qc6 {[%emt 0:02:07][%csl LRc4,LRe4]} 17. Nd2 {[%emt 0:01:39]} Rfd8 {[%emt 0:01:04]} 18. e5 {[%emt 0:10:01]} Bc5 {[%emt 0:03:30] [#] White must now prevent ...Bd4. Black is more active.} 19. Nb3 {[%emt 0:01:19] Inhibits Bd4.} b5 {[%emt 0:02:14]} 20. Nxc5 {[%emt 0:08:56]} Qxc5 {[%emt 0:00:05]} 21. Rfd1 {[%emt 0:00:13]} bxc4 {[%emt 0:01:31]} ({Not} 21... Qxc4 22. Rxd8+ Rxd8 23. Qxc4 bxc4 24. Kf1 $17) 22. Rxd8+ {[%emt 0:03:44]} Rxd8 $19 {[%emt 0:00:01] KQR-KQR} 23. Rb1 {[%emt 0:00:27]} h6 {[%emt 0:01:32]} 24. h3 {[%emt 0:00:35]} Rd3 {[%emt 0:06:28] Prevents Qe3.} 25. Rb8+ {[%emt 0:04:08]} Kh7 {[%emt 0:00:04]} 26. Qe1 {[%emt 0:00:13]} (26. Qc2 Qxe5 27. Rb1) 26... Qd4 {[%emt 0:00:40] Threatens to win with ...Rd1.} 27. Qb1 {[%emt 0:02:37]} g6 {[%emt 0:01:04] Weighted Error Value: White=0.70/Black=0.03 (flawless)} 0-1

[Event "2nd Bieszczady Chess-ch A 2022"]
[Site "Bystre"]
[Date "2022.07.23"]
[Round "8.8"]
[White "Kucharski, Bartlomiej"]
[Black "Maksimenko, Andrei Jr"]
[Result "1-0"]
[ECO "B40"]
[WhiteElo "2003"]
[BlackElo "1897"]
[Annotator "TA"]
[PlyCount "123"]
[EventDate "2022.07.17"]
[EventCountry "POL"]
[SourceTitle "playchess.com"]
[Source "ChessBase"]
[SourceQuality "1"]
[TimeControl "5400+30"]

{[%evp 15,123,2,-2,0,-10,-8,-4,-12,13,14,39,34,37,11,18,19,22,20,29,25,42,18,15,0,0,12,13,0,33,0,110,112,104,-22,154,154,338,319,381,381,367,333,309,187,437,433,745,516,561,380,525,350,406,233,404,284,295,292,340,337,325,308,278,278,315,314,608,564,601,584,589,591,516,506,585,135,1581,1581,1297,1240,2532,1940,29970,29972,29972,29973,29981,29980,29980,29974,29974,29975,29972,29971,29983,29979,29982,29983,29983,29984,29990,29984,29987,29987,29990,29991,29992,29993,29993,4714]} 1. e4 {[%emt 0:03:24]} c5 {[%emt 0:03:00]} 2. Nf3 {[%emt 0:01:10]} e6 {[%emt 0:00:07]} 3. d3 {[%emt 0:00:25]} Nc6 {[%emt 0:00:41]} 4. g3 {[%emt 0:00:46]} Nge7 {[%emt 0:00:48]} 5. Bg2 {[%emt 0:00:25]} g6 {[%emt 0:00:51]} 6. O-O {[%emt 0:03:52]} Bg7 {[%emt 0:00:04]} 7. Qe2 {[%emt 0:05:17]} d6 {[%emt 0:10:27] has lost popularity (7...0-0).} 8. c3 {[%emt 0:02:45]} O-O {[%emt 0:06:04]} 9. Rd1 {[%emt 0:06:17] C00: French: Unusual White 2nd moves.} e5 {[%emt 0:02:35]} 10. Na3 {[%emt 0:09:01]} Bg4 {[%emt 0:15:11]} 11. h3 {[%emt 0:03:53] The position is equal.} Bxf3 {[%emt 0:00:29]} 12. Bxf3 {[%emt 0:00:26] [#]} Rb8 $146 {[%emt 0:01:48]} ({Predecessor:} 12... Qd7 13. Bg2 f5 14. Nc2 d5 15. Bg5 Kh8 16. Bxe7 Nxe7 17. b4 Rac8 18. c4 fxe4 {0-1 (68) Fichtl,J-Marsalek,J Pardubice 1965}) 13. Nc2 {[%emt 0:12:59]} b5 {[%emt 0:08:55]} 14. a3 {[%emt 0:06:37]} a5 {[%emt 0:08:44]} 15. b4 {[%emt 0:05:33]} axb4 {[%emt 0:03:52]} 16. axb4 {[%emt 0:00:34]} cxb4 {[%emt 0:02:24]} 17. cxb4 {[%emt 0:02:28]} d5 {[%emt 0:03:09]} 18. Bg2 {[%emt 0:11:21]} Qd6 {[%emt 0:05:58]} 19. d4 Nxd4 {[%emt 0:09:11]} 20. Nxd4 {[%emt 0:06:50]} exd4 {[%emt 0:00:01]} 21. Bf4 {[%emt 0:01:32]} Qxb4 {[%emt 0:07:44][%cal Od4d3]} 22. exd5 {[%emt 0:02:45] aiming for Rdb1.} Rbd8 {[%emt 0:01:17]} (22... d3 $1 $11 23. Qxd3 Bxa1 24. Bxb8 Rxb8 25. Rxa1 Nf5) 23. Rab1 $36 {[%emt 0:06:08][%mdl 2048] Keeping Black busy. White is more active.} Qa3 {[%emt 0:01:07]} 24. Bc7 {[%emt 0:01:59]} ({Better is} 24. Bg5 $16 Nxd5 25. Bxd8 (25. Rxb5 $2 Nc3 $19) 25... Rxd8 26. Bxd5 (26. Rxb5 Nc3 $17) 26... Rxd5 27. Rxb5) 24... Nxd5 {[%emt 0:01:46]} 25. Bxd8 {[%emt 0:00:55][%cal Bc7d8,Bd8b6,Bb6a7][%mdl 32] A strong pair of Bishops.} Nc3 {[%emt 0:01:38] [#]} (25... Rxd8 $16 26. Bxd5 (26. Rxb5 Nc3 $17) 26... Rxd5) 26. Qe7 $1 $18 {[%emt 0:00:53]} Nxb1 {[%emt 0:00:47]} (26... Qxe7 27. Bxe7) 27. Rxb1 {[%emt 0:01:11]} Qd3 {[%emt 0:02:33]} 28. Re1 {[%emt 0:02:04]} Qc3 {[%emt 0:00:37]} 29. Bb6 {[%emt 0:02:39]} Rb8 $2 {[%emt 0:00:25] [#]} (29... Bf6 30. Qxf6 Qxe1+ 31. Bf1 Qe6 32. Qxd4 Rc8) 30. Bd5 {[%emt 0:00:33]} Kh8 {[%emt 0:01:43]} (30... Rf8 $142 31. Bc5 d3) 31. Ba7 {[%emt 0:00:37]} Rc8 {[%emt 0:00:37]} 32. Rd1 {[%emt 0:00:26]} b4 {[%emt 0:01:24]} 33. Be4 {[%emt 0:00:44]} b3 {[%emt 0:00:14]} 34. Qd7 {[%emt 0:00:27]} (34. Qxf7 $142 {Hoping for Qd5.} b2 35. Kg2) 34... Kg8 $2 {[%emt 0:00:39]} (34... Qc7 {was called for.} 35. Qxc7 (35. Bxd4 Qxd7 36. Bxg7+ Kxg7 $18) 35... Rxc7) 35. Bxd4 {[%emt 0:00:30]} Bxd4 {[%emt 0:00:28]} 36. Qxd4 {[%emt 0:00:11]} ({Weaker is} 36. Rxd4 Qe1+ 37. Kg2 Rc1 $14) 36... b2 {[%emt 0:00:35]} 37. Qxc3 {[%emt 0:00:31]} Rxc3 {[%emt 0:00:01][%mdl 4096] Endgame KRB-KR} 38. Kf1 {[%emt 0:00:18]} f5 {[%emt 0:00:33]} 39. Bb1 {[%emt 0:00:39]} f4 {[%emt 0:00:36]} 40. gxf4 {[%emt 0:00:00] Ba2+ is the strong threat.} Rxh3 $2 {[%emt 0:00:00]} (40... Kg7 41. Ke2 Rb3 42. Rd7+ Kg8) 41. Ke2 {[%emt 0:00:00]} Kg7 {[%emt 0:00:00]} 42. Bd3 {[%emt 0:00:00]} Rh4 {[%emt 0:00:00]} 43. Ke3 {[%emt 0:00:00]} Rh3+ {[%emt 0:00:00]} 44. f3 {[%emt 0:00:00]} Rh5 {[%emt 0:00:00]} 45. Rd2 $2 {[%emt 0:00:00]} (45. Rb1 $18 {is more deadly.} Rh2 46. Be2) 45... Ra5 $2 {[%emt 0:00:00][%mdl 8192] Black cannot hold the game after this.} (45... Rb5 $16) 46. Rxb2 {[%emt 0:00:00]} Ra7 {[%emt 0:00:00]} 47. Rb6 {[%emt 0:00:00]} Rf7 {[%emt 0:00:01] Prevents f5.} 48. f5 {[%emt 0:00:32][%cal Rf5g6]} gxf5 {[%emt 0:01:26]} 49. Kf4 {[%emt 0:00:09] White mates.} Ra7 {[%emt 0:00:30]} 50. Bxf5 {[%emt 0:00:31]} Rf7 {[%emt 0:00:45]} 51. Rd6 {[%emt 0:00:42]} Rf8 {[%emt 0:01:43]} 52. Rd7+ {[%emt 0:00:24]} Kf6 {[%emt 0:00:22]} 53. Rxh7 {[%emt 0:00:12]} Rb8 {[%emt 0:00:34]} 54. Rh6+ {[%emt 0:00:05]} Kg7 {[%emt 0:00:09]} 55. Ra6 {[%emt 0:00:06]} Rb2 {[%emt 0:00:24]} 56. Kg5 {[%emt 0:00:14]} Rb7 {[%emt 0:00:16]} 57. f4 {[%emt 0:00:15]} Rc7 {[%emt 0:00:04]} 58. Rd6 {[%emt 0:00:38]} Rc1 {[%emt 0:00:20]} 59. Rd7+ {[%emt 0:00:11]} Kh8 {[%emt 0:00:17]} 60. Bg6 {[%emt 0:02:25]} Rc5+ {[%emt 0:00:54]} 61. Kh6 {[%emt 0:00:40][%cal Rd7d8]} Rc8 {[%emt 0:00:11]} 62. Rh7+ {[%emt 0:00:22] Weighted Error Value: White=0.64/Black=0.58} (62. f5 $142 Kg8 63. f6 Rb8 64. Re7 Kf8 65. Rh7 Kg8 66. Bf7+ Kf8 67. Be6 Ke8 68. Rh8#) 1-0

[Event "2nd Bieszczady Chess-ch A 2022"]
[Site "Bystre"]
[Date "2022.07.23"]
[Round "8.9"]
[White "Bugajski, Robert"]
[Black "Kopacz, Lukasz"]
[Result "1/2-1/2"]
[ECO "A40"]
[WhiteElo "2075"]
[BlackElo "1821"]
[Annotator "TA"]
[PlyCount "75"]
[EventDate "2022.07.17"]
[EventCountry "POL"]
[SourceTitle "playchess.com"]
[Source "ChessBase"]
[SourceQuality "1"]
[TimeControl "5400+30"]

{[%evp 10,75,49,27,30,15,56,11,28,-19,-20,-25,-31,-24,-25,-21,-10,-14,-29,-80,-58,-65,-29,-27,-42,-47,-60,-60,-48,-22,0,0,0,0,0,0,0,0,0,-2,8,0,0,0,0,0,0,0,0,0,0,0,0,0,0,0,0,0,0,0,0,0,0,0,0,-13,0,0]} 1. d4 g6 2. c4 Bg7 3. Nc3 c5 4. Nf3 d6 5. e3 Nc6 6. Be2 (6. d5 $5 {[%cal Rd5c6]} Ne5 7. Nxe5 Bxe5 8. Bd2 $14) 6... e6 {A35: Symmetrical English: 2 Nc3 Nc6 3 Nf3.} 7. O-O Nf6 {[%cal Bg8f6,Bf6d5,Bd5c3][%mdl 32] is the legacy move (7...Nge7).} 8. h3 (8. d5 $5 {[%cal Rd5c6]} Ne7 9. e4 $14) 8... O-O 9. e4 (9. Qc2 $142) 9... cxd4 $11 10. Nxd4 Nxd4 ({Much worse is} 10... Nxe4 11. Nxc6 Nxc3 12. Nxd8 $11) 11. Qxd4 {[#]} Nd5 $1 12. Qd3 Nxc3 13. bxc3 Qa5 {Against Ba3} 14. Bd2 {[#]} (14. Qxd6 $11 Rd8 15. Qe7) 14... Rd8 $146 ({Predecessor:} 14... b6 15. Qxd6 Ba6 16. Qf4 Rac8 17. Rfc1 Bxc4 18. Bxc4 Rxc4 19. Qe3 Rfc8 20. Qd3 Qe5 {0-1 (31) Fecteau,M (1882)-Beaudoin,S (2015) Charlesbourg 2013}) 15. Rfb1 Rb8 16. Rb5 Qc7 17. Bf4 b6 $1 18. Rd1 {[%cal Rf4d6]} Ba6 {[#] aiming for ...Be5.} 19. Bxd6 Rxd6 {The position is equal.} (19... Qc6 {feels hotter.} 20. e5 Rbc8 21. a4 Bxb5 22. axb5 Qe8) 20. Qxd6 Qxd6 21. Rxd6 {Strongly threatening Rb3.} Bxb5 22. cxb5 Bxc3 $15 {[%mdl 4096] Endgame KRB-KRB} 23. Rd7 Rc8 24. f4 Bb4 25. Rxa7 Rc2 26. Bf3 Bd6 27. e5 Bc5+ 28. Kh2 Be3 29. Ra4 Rb2 30. Bc6 Rf2 31. Kg3 Kg7 32. Re4 Bc5 33. a4 Ra2 34. Rc4 {[%cal Oc4c5]} Ra3+ 35. Bf3 Bg1 36. Rc1 Be3 37. Re1 Bd4 {[%mdl 1024] Black has compensation.} 38. Re4 {Weighted Error Value: White=0.07 (flawless) /Black=0.05 (flawless)} 1/2-1/2

[Event "2nd Bieszczady Chess-ch A 2022"]
[Site "Bystre"]
[Date "2022.07.24"]
[Round "9.1"]
[White "Razin, Vadim"]
[Black "Babiarz, Arkadiusz"]
[Result "1-0"]
[ECO "D31"]
[WhiteElo "2428"]
[BlackElo "2027"]
[Annotator "TA"]
[PlyCount "59"]
[EventDate "2022.07.17"]
[EventCountry "POL"]
[SourceTitle "playchess.com"]
[Source "ChessBase"]
[SourceQuality "1"]
[TimeControl "5400+30"]

{[%evp 12,58,-31,-29,-27,-26,-29,-37,0,-24,-25,-52,-18,-18,-20,-15,-25,-14,0,-52,-44,-77,-8,-75,-64,-70,-77,-62,0,0,944,637,917,853,29983,29984,29984,29985,29985,29986,29986,29987,6837,5804,29986,29987,29998,29999,29999]} 1. d4 {[%emt 0:00:02]} d5 {[%emt 0:00:05]} 2. Nf3 {[%emt 0:00:05]} e6 {[%emt 0:00:06]} 3. c4 {[%emt 0:01:02]} c6 {[%emt 0:00:16]} 4. Nc3 {[%emt 0:00:12]} dxc4 {[%emt 0:00:07]} 5. e4 {[%emt 0:00:08]} b5 {[%emt 0:00:05]} 6. Be2 {[%emt 0:00:10]} Bb7 {[%emt 0:02:16]} 7. O-O {[%emt 0:00:12][%cal Od4d5]} Nf6 {[%emt 0:00:51] Prevents d5. D31: Queen's Gambit Declined: Semi-Slav without ...Nf6 (+ Marshall Gambit and Noteboom) and Exchange Variation lines without ...Nf6.} 8. e5 {[%emt 0:00:09]} Nd5 {[%emt 0:00:11]} 9. Ne4 {[%emt 0:01:16]} Nd7 {[%emt 0:02:17] Black is slightly better.} 10. a4 {[%emt 0:00:09]} a6 {[%emt 0:00:58]} 11. Bd2 {[%emt 0:01:01]} Be7 {[%emt 0:01:39]} 12. b3 {[%emt 0:00:07]} cxb3 {[%emt 0:01:39]} 13. Qxb3 {[%emt 0:00:01]} O-O {[%emt 0:01:19]} 14. Rfc1 {[%emt 0:00:22]} Qb6 {[%emt 0:05:37] [#]} 15. Bg5 $146 {[%emt 0:04:00]} (15. Qd3 $11) ({Predecessor:} 15. a5 Qa7 16. Qc2 h6 17. Nc5 Nxc5 18. dxc5 Rad8 19. Ra3 Rd7 20. Ne1 f5 21. exf6 Nxf6 {1-0 (33) Meskovs,N (2561)-Lampert,J (2542) Germany 2022}) 15... Bb4 $15 {[%emt 0:06:51]} 16. Qc2 {[%emt 0:03:05] Prevents c5.} Rfe8 {[%emt 0:04:04]} (16... h6 $17 17. Bd2 Bxd2 18. Qxd2 a5) 17. Nc5 {[%emt 0:03:18]} (17. Bd2 $11) 17... Nxc5 $17 {[%emt 0:05:28]} 18. dxc5 {[%emt 0:00:05]} Qc7 {[%emt 0:00:11]} 19. Qe4 {[%emt 0:16:05]} Nc3 {[%emt 0:04:19]} (19... Bc3 $15 20. Rab1 b4) 20. Qe3 $11 {[%emt 0:18:01]} Nxa4 {[%emt 0:00:52][%mdl 8192] [#]} (20... h6 $11 21. Rxc3 Bxc3 22. Qxc3 hxg5) 21. Rxa4 $1 {[%emt 0:03:18][%mdl 512]} bxa4 {[%emt 0:00:08] [#]} (21... f6 22. Rxb4) 22. Bf6 {[%emt 0:08:45][%mdl 512] Against Red8. White wants to mate with Qg5.} gxf6 {[%emt 0:16:51]} (22... Qe7 23. Bxe7) 23. exf6 {[%emt 0:00:07]} Kh8 {[%emt 0:00:03]} 24. Qh6 {[%emt 0:00:04][%csl Gf6][%cal Rh6g7]} Rg8 {[%emt 0:00:04] [#]} 25. Bd3 $1 {[%emt 0:00:06][%csl Gd3][%cal Rh6h7]} Rg6 {[%emt 0:00:06]} 26. Bxg6 {[%emt 0:00:04]} fxg6 {[%emt 0:00:04]} 27. Ng5 {[%emt 0:00:06] Threatening mate with f7.} Bd2 {[%emt 0:06:47] [#]} 28. f7 $1 {[%emt 0:00:11][%csl Gg5][%cal Rh6h7] White mates.} Bxg5 {[%emt 0:00:04]} (28... Qxf7 29. Nxf7+) 29. f8=R+ {[%emt 0:00:03]} Rxf8 {[%emt 0:00:04]} 30. Qxf8# {[%emt 0:00:01] Weighted Error Value: White=0.28 (precise) /Black=0.84} 1-0